[Event "Early-Titled-Tuesday-Blitz-October-24-2023"]
[Site "Chess.com"]
[Date "2023.10.24"]
[Round "6"]
[White "Semetey"]
[Black "Russian_berezka"]
[Result "1-0"]
[WhiteElo "2545"]
[BlackElo "2680"]
[TimeControl "180+1"]
[EndTime "9:04:08 PDT"]
[Termination "Semetey won by resignation"]

1. a3 {[%clk 0:02:53.8]} 1... d5 {[%clk 0:02:55.6]} 2. d4 {[%clk 0:02:51.7]}
2... Nf6 {[%clk 0:02:55]} 3. Nc3 {[%clk 0:02:50.7]} 3... h6 {[%clk 0:02:49.6]}
4. Bf4 {[%clk 0:02:50.4]} 4... a6 {[%clk 0:02:46.9]} 5. e3 {[%clk 0:02:49.5]}
5... e6 {[%clk 0:02:46.3]} 6. Nf3 {[%clk 0:02:48.1]} 6... c5 {[%clk 0:02:46.4]}
7. h3 {[%clk 0:02:39.4]} 7... b5 {[%clk 0:02:44.4]} 8. dxc5 {[%clk 0:02:38.5]}
8... Bxc5 {[%clk 0:02:43.9]} 9. Bd3 {[%clk 0:02:39.1]} 9... Bb7 {[%clk
0:02:36.7]} 10. O-O {[%clk 0:02:38.2]} 10... Nbd7 {[%clk 0:02:36.7]} 11. Qe2
{[%clk 0:02:38]} 11... O-O {[%clk 0:02:31.9]} 12. Rad1 {[%clk 0:02:36.8]} 12...
Qb6 {[%clk 0:02:28.1]} 13. e4 {[%clk 0:02:29.4]} 13... dxe4 {[%clk 0:02:24.9]}
14. Nxe4 {[%clk 0:02:28.5]} 14... Nxe4 {[%clk 0:02:25.3]} 15. Bxe4 {[%clk
0:02:29.4]} 15... Bxe4 {[%clk 0:02:23.5]} 16. Qxe4 {[%clk 0:02:30.3]} 16... Nf6
{[%clk 0:02:24.2]} 17. Qe2 {[%clk 0:02:27.2]} 17... Nd5 {[%clk 0:02:19.1]} 18.
Bc1 {[%clk 0:02:23.4]} 18... Rac8 {[%clk 0:01:48]} 19. Ne5 {[%clk 0:02:21.1]}
19... Nf6 {[%clk 0:01:42.9]} 20. Qf3 {[%clk 0:02:18.9]} 20... Bd4 {[%clk
0:01:35]} 21. Ng4 {[%clk 0:01:57.4]} 21... Nxg4 {[%clk 0:01:12.2]} 22. Qxg4
{[%clk 0:01:56.3]} 22... Rc4 {[%clk 0:01:06.5]} 23. Qe2 {[%clk 0:01:52.3]} 23...
Rfc8 {[%clk 0:01:03.8]} 24. c3 {[%clk 0:01:51.7]} 24... Bf6 {[%clk 0:01:04.5]}
25. Rd7 {[%clk 0:01:46.2]} 25... R4c7 {[%clk 0:00:51.7]} 26. Rfd1 {[%clk
0:01:45.9]} 26... Rxd7 {[%clk 0:00:51.6]} 27. Rxd7 {[%clk 0:01:46.8]} 27... Rd8
{[%clk 0:00:52]} 28. Qd3 {[%clk 0:01:45.4]} 28... Rxd7 {[%clk 0:00:49.9]} 29.
Qxd7 {[%clk 0:01:46.3]} 29... Qd8 {[%clk 0:00:33.1]} 30. Qxd8+ {[%clk
0:01:45.9]} 30... Bxd8 {[%clk 0:00:34]} 31. Kf1 {[%clk 0:01:46.2]} 31... Kf8
{[%clk 0:00:33.3]} 32. Ke2 {[%clk 0:01:46.2]} 32... Ke7 {[%clk 0:00:32.7]} 33.
Kd3 {[%clk 0:01:46.3]} 33... Kd6 {[%clk 0:00:32.2]} 34. b3 {[%clk 0:01:44.3]}
34... f5 {[%clk 0:00:30.2]} 35. c4 {[%clk 0:01:41.1]} 35... e5 {[%clk
0:00:28.5]} 36. f3 {[%clk 0:01:40.5]} 36... g5 {[%clk 0:00:25]} 37. cxb5 {[%clk
0:01:38.4]} 37... axb5 {[%clk 0:00:25.9]} 38. Bd2 {[%clk 0:01:35.9]} 38... Kd5
{[%clk 0:00:26]} 39. a4 {[%clk 0:01:35.6]} 39... e4+ {[%clk 0:00:26.3]} 40.
fxe4+ {[%clk 0:01:35.3]} 40... fxe4+ {[%clk 0:00:27.2]} 41. Ke2 {[%clk
0:01:32.4]} 41... bxa4 {[%clk 0:00:26.7]} 42. bxa4 {[%clk 0:01:33.3]} 42... Kc4
{[%clk 0:00:21.6]} 43. a5 {[%clk 0:01:31.7]} 43... Kb5 {[%clk 0:00:05.6]} 44.
Ke3 {[%clk 0:01:31]} 44... Bxa5 {[%clk 0:00:02.7]} 45. Bxa5 {[%clk 0:01:30.5]}
45... Kxa5 {[%clk 0:00:03.6]} 46. Kxe4 {[%clk 0:01:31.2]} 46... Kb5 {[%clk
0:00:04.5]} 47. Kf5 {[%clk 0:01:31.3]} 47... Kc5 {[%clk 0:00:04.7]} 48. Kg6
{[%clk 0:01:31.7]} 48... Kd4 {[%clk 0:00:04.8]} 49. Kxh6 {[%clk 0:01:32.1]} 1-0

[Event "Early-Titled-Tuesday-Blitz-October-24-2023"]
[Site "Chess.com"]
[Date "2023.10.24"]
[Round "6"]
[White "Verony64"]
[Black "deepfear"]
[Result "1-0"]
[WhiteElo "2182"]
[BlackElo "1780"]
[TimeControl "180+1"]
[EndTime "9:04:08 PDT"]
[Termination "Verony64 won on time"]

1. e4 {[%clk 0:03:00.9]} 1... c5 {[%clk 0:02:57.5]} 2. Nc3 {[%clk 0:03:00.7]}
2... g6 {[%clk 0:02:55.4]} 3. d3 {[%clk 0:03:00.9]} 3... Bg7 {[%clk 0:02:55.7]}
4. g3 {[%clk 0:03:01.2]} 4... e6 {[%clk 0:02:55.7]} 5. Bg2 {[%clk 0:03:01.8]}
5... Nc6 {[%clk 0:02:55.3]} 6. f4 {[%clk 0:03:02.4]} 6... Nge7 {[%clk
0:02:54.3]} 7. Nf3 {[%clk 0:03:03]} 7... O-O {[%clk 0:02:50.9]} 8. O-O {[%clk
0:03:02]} 8... d6 {[%clk 0:02:45.2]} 9. Be3 {[%clk 0:03:02.4]} 9... f5 {[%clk
0:02:44.9]} 10. Qd2 {[%clk 0:03:01.5]} 10... Nd4 {[%clk 0:02:39.3]} 11. Rae1
{[%clk 0:02:58]} 11... a6 {[%clk 0:02:35.2]} 12. h3 {[%clk 0:02:51.4]} 12... Rb8
{[%clk 0:02:29.6]} 13. Nd1 {[%clk 0:02:38.8]} 13... b5 {[%clk 0:02:08.6]} 14.
Nh2 {[%clk 0:02:30.3]} 14... Bb7 {[%clk 0:01:49.3]} 15. c3 {[%clk 0:02:24.5]}
15... Ndc6 {[%clk 0:01:48.8]} 16. Nf3 {[%clk 0:02:16.3]} 16... b4 {[%clk
0:01:32.1]} 17. Ng5 {[%clk 0:02:15.6]} 17... Bc8 {[%clk 0:01:17.7]} 18. Bf2
{[%clk 0:01:56.8]} 18... h6 {[%clk 0:01:13.4]} 19. Nf3 {[%clk 0:01:53.7]} 19...
Qa5 {[%clk 0:00:59.5]} 20. e5 {[%clk 0:01:43.6]} 20... dxe5 {[%clk 0:00:46.6]}
21. fxe5 {[%clk 0:01:43.3]} 21... Qxa2 {[%clk 0:00:40.7]} 22. Bxc5 {[%clk
0:01:42.5]} 22... bxc3 {[%clk 0:00:31.3]} 23. bxc3 {[%clk 0:01:40.3]} 23... Qxd2
{[%clk 0:00:30.2]} 24. Nxd2 {[%clk 0:01:40.4]} 24... Rd8 {[%clk 0:00:24.3]} 25.
Bd6 {[%clk 0:01:38.5]} 25... Rb5 {[%clk 0:00:17.8]} 26. Nc4 {[%clk 0:01:37.8]}
26... a5 {[%clk 0:00:14.4]} 27. Ndb2 {[%clk 0:01:23.8]} 27... Nd5 {[%clk
0:00:13.6]} 28. Na4 {[%clk 0:01:18.5]} 28... Bb7 {[%clk 0:00:12.2]} 29. Rb1
{[%clk 0:01:17.2]} 29... Rxb1 {[%clk 0:00:11.5]} 30. Rxb1 {[%clk 0:01:18]} 30...
Rd7 {[%clk 0:00:11.9]} 31. Bxd5 {[%clk 0:01:08.9]} 31... exd5 {[%clk 0:00:11.8]}
32. e6 {[%clk 0:01:09.3]} 32... Rxd6 {[%clk 0:00:08.6]} 33. Nxd6 {[%clk
0:01:08.5]} 33... Ba6 {[%clk 0:00:07.9]} 34. Rb6 {[%clk 0:01:04.2]} 34... Bxd3
{[%clk 0:00:04.8]} 35. Rxc6 {[%clk 0:01:03.7]} 35... Kf8 {[%clk 0:00:03.2]} 36.
Nc5 {[%clk 0:01:01.9]} 1-0

[Event "Early-Titled-Tuesday-Blitz-October-24-2023"]
[Site "Chess.com"]
[Date "2023.10.24"]
[Round "6"]
[White "Suleyman_Chess06"]
[Black "Noki102"]
[Result "1-0"]
[WhiteElo "2605"]
[BlackElo "2424"]
[TimeControl "180+1"]
[EndTime "9:04:10 PDT"]
[Termination "Suleyman_Chess06 won on time"]

1. Nf3 {[%clk 0:03:00.9]} 1... d5 {[%clk 0:02:58.3]} 2. g3 {[%clk 0:03:01]} 2...
Nf6 {[%clk 0:02:55.2]} 3. Bg2 {[%clk 0:03:01.4]} 3... e6 {[%clk 0:02:51.5]} 4.
O-O {[%clk 0:03:01]} 4... Be7 {[%clk 0:02:51.7]} 5. d4 {[%clk 0:03:01.9]} 5...
O-O {[%clk 0:02:51.5]} 6. c4 {[%clk 0:03:02.6]} 6... c6 {[%clk 0:02:51.7]} 7.
Nc3 {[%clk 0:03:02.2]} 7... a5 {[%clk 0:02:49.1]} 8. Ne5 {[%clk 0:03:01.2]} 8...
Nbd7 {[%clk 0:02:46.6]} 9. Bf4 {[%clk 0:03:01.8]} 9... h6 {[%clk 0:02:44.1]} 10.
cxd5 {[%clk 0:03:01.5]} 10... Nxd5 {[%clk 0:02:41.2]} 11. e4 {[%clk 0:02:58.9]}
11... Nxf4 {[%clk 0:02:37.1]} 12. gxf4 {[%clk 0:02:59.8]} 12... Nxe5 {[%clk
0:02:34.7]} 13. fxe5 {[%clk 0:03:00.7]} 13... b5 {[%clk 0:02:27]} 14. Rc1 {[%clk
0:02:51.1]} 14... b4 {[%clk 0:02:21.3]} 15. Ne2 {[%clk 0:02:50.6]} 15... Qb6
{[%clk 0:02:17.4]} 16. Qa4 {[%clk 0:02:36.4]} 16... Bd7 {[%clk 0:01:34.5]} 17.
d5 {[%clk 0:02:29.4]} 17... Rfc8 {[%clk 0:01:27]} 18. Rc2 {[%clk 0:02:21.1]}
18... Be8 {[%clk 0:01:23.5]} 19. d6 {[%clk 0:02:20.9]} 19... Bd8 {[%clk
0:01:12.4]} 20. Rd1 {[%clk 0:02:19.8]} 20... Bd7 {[%clk 0:01:10.7]} 21. Nd4
{[%clk 0:02:13.5]} 21... Ra7 {[%clk 0:01:10.5]} 22. Qb3 {[%clk 0:02:02.3]} 22...
c5 {[%clk 0:01:07.6]} 23. Ne2 {[%clk 0:02:02.5]} 23... a4 {[%clk 0:00:59.5]} 24.
Qe3 {[%clk 0:02:01.9]} 24... c4 {[%clk 0:00:50.8]} 25. Rdc1 {[%clk 0:01:42.2]}
25... Qxe3 {[%clk 0:00:46.7]} 26. fxe3 {[%clk 0:01:43.1]} 26... Bb6 {[%clk
0:00:44.5]} 27. Nd4 {[%clk 0:01:39.8]} 27... Bxd4 {[%clk 0:00:36.8]} 28. exd4
{[%clk 0:01:40.7]} 28... b3 {[%clk 0:00:08.4]} 29. axb3 {[%clk 0:01:39.7]} 29...
axb3 {[%clk 0:00:09.3]} 30. Rxc4 {[%clk 0:01:39.2]} 30... Rxc4 {[%clk
0:00:09.2]} 31. Rxc4 {[%clk 0:01:40.1]} 31... Ra1+ {[%clk 0:00:09.8]} 32. Kf2
{[%clk 0:01:39.9]} 32... Ra2 {[%clk 0:00:10.7]} 33. Rc7 {[%clk 0:01:40.4]} 33...
Rxb2+ {[%clk 0:00:10.6]} 34. Kg3 {[%clk 0:01:40.6]} 34... Ba4 {[%clk 0:00:02.8]}
35. d7 {[%clk 0:01:39.2]} 35... Bxd7 {[%clk 0:00:03.1]} 36. Rxd7 {[%clk
0:01:38.5]} 36... Rd2 {[%clk 0:00:04]} 37. Rb7 {[%clk 0:01:37.2]} 37... Rd3+
{[%clk 0:00:03.3]} 38. Kf2 {[%clk 0:01:37.6]} 38... Rxd4 {[%clk 0:00:02.8]} 39.
Rxb3 {[%clk 0:01:38.1]} 39... Rd2+ {[%clk 0:00:03.2]} 40. Kg3 {[%clk 0:01:38.6]}
40... g5 {[%clk 0:00:03.2]} 41. Bf3 {[%clk 0:01:38.9]} 41... Kg7 {[%clk
0:00:03.2]} 42. Rb7 {[%clk 0:01:38.3]} 42... Kg6 {[%clk 0:00:03.4]} 43. h4
{[%clk 0:01:36.2]} 43... gxh4+ {[%clk 0:00:03]} 44. Kxh4 {[%clk 0:01:37.1]}
44... Rd3 {[%clk 0:00:03.2]} 45. Bh5+ {[%clk 0:01:37.1]} 45... Kg7 {[%clk
0:00:03.6]} 46. Rxf7+ {[%clk 0:01:37.8]} 46... Kg8 {[%clk 0:00:04.5]} 47. Rf6
{[%clk 0:01:38.4]} 47... Re3 {[%clk 0:00:03.3]} 48. Bg6 {[%clk 0:01:35.1]} 48...
Rg3 {[%clk 0:00:01.7]} 49. Rxe6 {[%clk 0:01:35.1]} 1-0

[Event "Early-Titled-Tuesday-Blitz-October-24-2023"]
[Site "Chess.com"]
[Date "2023.10.24"]
[Round "6"]
[White "IsaqueGoncalvesSanto"]
[Black "aranibos"]
[Result "1/2-1/2"]
[WhiteElo "1829"]
[BlackElo "2277"]
[TimeControl "180+1"]
[EndTime "9:04:12 PDT"]
[Termination "Game drawn by repetition"]

1. d4 {[%clk 0:03:00.9]} 1... c6 {[%clk 0:03:00.9]} 2. c4 {[%clk 0:03:00.5]}
2... d5 {[%clk 0:03:01.5]} 3. Nc3 {[%clk 0:03:00.8]} 3... Nf6 {[%clk 0:03:01.4]}
4. Nf3 {[%clk 0:03:00.9]} 4... e6 {[%clk 0:03:02]} 5. Bg5 {[%clk 0:03:00]} 5...
dxc4 {[%clk 0:03:02.5]} 6. a4 {[%clk 0:02:58.9]} 6... Bb4 {[%clk 0:03:00.9]} 7.
e4 {[%clk 0:02:32.3]} 7... Qa5 {[%clk 0:02:57.3]} 8. Bd2 {[%clk 0:02:28.8]} 8...
Bxc3 {[%clk 0:02:37.5]} 9. Bxc3 {[%clk 0:02:27.3]} 9... Qc7 {[%clk 0:02:37]} 10.
e5 {[%clk 0:02:05.8]} 10... Nd5 {[%clk 0:02:37.2]} 11. Bxc4 {[%clk 0:02:02.5]}
11... b6 {[%clk 0:02:23.9]} 12. O-O {[%clk 0:01:57.2]} 12... Ba6 {[%clk
0:02:20.9]} 13. Nd2 {[%clk 0:01:54.3]} 13... Bxc4 {[%clk 0:02:19.1]} 14. Nxc4
{[%clk 0:01:52.9]} 14... O-O {[%clk 0:02:19.7]} 15. Nd6 {[%clk 0:01:51.8]} 15...
f5 {[%clk 0:02:18.7]} 16. Rc1 {[%clk 0:01:37.9]} 16... Nd7 {[%clk 0:02:11.8]}
17. b4 {[%clk 0:01:35]} 17... Rad8 {[%clk 0:01:54.2]} 18. f4 {[%clk 0:01:33.9]}
18... c5 {[%clk 0:01:49.7]} 19. Qe2 {[%clk 0:01:12.9]} 19... cxb4 {[%clk
0:01:41.5]} 20. Bxb4 {[%clk 0:01:12.2]} 20... Qb8 {[%clk 0:01:42.2]} 21. Ba3
{[%clk 0:01:10]} 21... a5 {[%clk 0:01:35.6]} 22. Rc2 {[%clk 0:01:05.3]} 22...
Nb4 {[%clk 0:01:33.4]} 23. Bxb4 {[%clk 0:01:04.1]} 23... axb4 {[%clk 0:01:34.1]}
24. Qb5 {[%clk 0:01:04.4]} 24... Qa8 {[%clk 0:01:26.1]} 25. Qxb4 {[%clk
0:01:04.1]} 25... Qd5 {[%clk 0:01:17.3]} 26. Qc4 {[%clk 0:01:03.4]} 26... Qxc4
{[%clk 0:01:09]} 27. Rxc4 {[%clk 0:01:02.9]} 27... Ra8 {[%clk 0:01:08.4]} 28.
Rc7 {[%clk 0:01:00.4]} 28... Rfd8 {[%clk 0:01:09]} 29. Ra1 {[%clk 0:00:56.1]}
29... h6 {[%clk 0:01:07.9]} 30. Kf2 {[%clk 0:00:55.3]} 30... Kh7 {[%clk
0:01:07.7]} 31. Nf7 {[%clk 0:00:52.2]} 31... Rdc8 {[%clk 0:01:05.6]} 32. Rxd7
{[%clk 0:00:52.1]} 32... Rc2+ {[%clk 0:01:05.6]} 33. Kg1 {[%clk 0:00:51.4]}
33... Rac8 {[%clk 0:01:00.1]} 34. Nd6 {[%clk 0:00:51.2]} 34... R8c3 {[%clk
0:00:59.9]} 35. Ne8 {[%clk 0:00:49.1]} 35... Rd3 {[%clk 0:00:57.8]} 36. Rxg7+
{[%clk 0:00:48.3]} 36... Kh8 {[%clk 0:00:58.1]} 37. Rd7 {[%clk 0:00:46.3]} 37...
Rdd2 {[%clk 0:00:57.9]} 38. Nf6 {[%clk 0:00:41.5]} 38... Rxg2+ {[%clk
0:00:57.4]} 39. Kf1 {[%clk 0:00:41]} 39... Rcf2+ {[%clk 0:00:57.1]} 40. Ke1
{[%clk 0:00:41]} 40... Re2+ {[%clk 0:00:57.8]} 41. Kd1 {[%clk 0:00:40.8]} 41...
Rd2+ {[%clk 0:00:58]} 42. Kc1 {[%clk 0:00:41]} 42... Rc2+ {[%clk 0:00:58.2]} 43.
Kb1 {[%clk 0:00:40.3]} 43... Rb2+ {[%clk 0:00:58.4]} 44. Kc1 {[%clk 0:00:40.8]}
44... Rgc2+ {[%clk 0:00:56]} 45. Kd1 {[%clk 0:00:40.7]} 45... Rd2+ {[%clk
0:00:56.6]} 46. Ke1 {[%clk 0:00:40.8]} 46... Re2+ {[%clk 0:00:57.2]} 47. Kd1
{[%clk 0:00:40.3]} 47... Red2+ {[%clk 0:00:57.2]} 48. Ke1 {[%clk 0:00:40.3]}
48... Re2+ {[%clk 0:00:57.4]} 49. Kf1 {[%clk 0:00:40.1]} 49... Rf2+ {[%clk
0:00:57.3]} 50. Ke1 {[%clk 0:00:40.3]} 50... Rfe2+ {[%clk 0:00:57.4]} 1/2-1/2

[Event "Early-Titled-Tuesday-Blitz-October-24-2023"]
[Site "Chess.com"]
[Date "2023.10.24"]
[Round "6"]
[White "gueraumasague"]
[Black "vovachesss"]
[Result "0-1"]
[WhiteElo "2491"]
[BlackElo "2784"]
[TimeControl "180+1"]
[EndTime "9:04:15 PDT"]
[Termination "vovachesss won by resignation"]

1. e4 {[%clk 0:03:00.9]} 1... Nf6 {[%clk 0:02:58.4]} 2. Nc3 {[%clk 0:03:01.8]}
2... d5 {[%clk 0:02:56.9]} 3. e5 {[%clk 0:03:00.3]} 3... Nfd7 {[%clk 0:02:56.9]}
4. f4 {[%clk 0:03:00.4]} 4... c5 {[%clk 0:02:52.2]} 5. Nf3 {[%clk 0:03:01]} 5...
Nc6 {[%clk 0:02:50.5]} 6. d4 {[%clk 0:03:00.8]} 6... cxd4 {[%clk 0:01:52.4]} 7.
Nxd4 {[%clk 0:03:01.7]} 7... Nxd4 {[%clk 0:01:47]} 8. Qxd4 {[%clk 0:03:00.2]}
8... e6 {[%clk 0:01:47.9]} 9. Bb5 {[%clk 0:02:54.9]} 9... a6 {[%clk 0:01:46.5]}
10. Bxd7+ {[%clk 0:02:54.1]} 10... Bxd7 {[%clk 0:01:47.4]} 11. Be3 {[%clk
0:02:48.2]} 11... Rc8 {[%clk 0:01:47.5]} 12. O-O-O {[%clk 0:02:44.8]} 12... Rc4
{[%clk 0:01:30.9]} 13. Qd2 {[%clk 0:02:37.6]} 13... Bb4 {[%clk 0:01:01.3]} 14.
Bd4 {[%clk 0:02:25.7]} 14... O-O {[%clk 0:00:51.5]} 15. a3 {[%clk 0:02:17.4]}
15... Bc5 {[%clk 0:00:51.4]} 16. Bxc5 {[%clk 0:02:10.6]} 16... Rxc5 {[%clk
0:00:51.4]} 17. Ne2 {[%clk 0:02:11.1]} 17... Qb6 {[%clk 0:00:33.8]} 18. Nd4
{[%clk 0:02:10.3]} 18... Rfc8 {[%clk 0:00:34.3]} 19. Kb1 {[%clk 0:02:09.9]}
19... Rc4 {[%clk 0:00:29.6]} 20. c3 {[%clk 0:01:46.2]} 20... Qc5 {[%clk
0:00:18.9]} 21. Rc1 {[%clk 0:01:42.1]} 21... a5 {[%clk 0:00:16.3]} 22. Rhd1
{[%clk 0:01:40.1]} 22... b5 {[%clk 0:00:14.4]} 23. b4 {[%clk 0:01:22.2]} 23...
Qb6 {[%clk 0:00:11]} 24. Kb2 {[%clk 0:01:20.2]} 24... Be8 {[%clk 0:00:06.1]} 25.
f5 {[%clk 0:01:15.8]} 25... Bd7 {[%clk 0:00:03]} 26. f6 {[%clk 0:01:16]} 26...
gxf6 {[%clk 0:00:02.6]} 27. exf6 {[%clk 0:01:15.4]} 27... Kh8 {[%clk 0:00:03.5]}
28. Qh6 {[%clk 0:01:06]} 28... Rg8 {[%clk 0:00:04.1]} 29. Rd3 {[%clk 0:01:03.3]}
29... e5 {[%clk 0:00:03.8]} 30. Rh3 {[%clk 0:01:02.4]} 30... Bxh3 {[%clk
0:00:03.7]} 31. gxh3 {[%clk 0:00:44.4]} 31... exd4 {[%clk 0:00:03.7]} 0-1

[Event "Early-Titled-Tuesday-Blitz-October-24-2023"]
[Site "Chess.com"]
[Date "2023.10.24"]
[Round "6"]
[White "GiorgianBarbosa"]
[Black "gpsji27"]
[Result "1-0"]
[WhiteElo "2412"]
[BlackElo "2282"]
[TimeControl "180+1"]
[EndTime "9:04:17 PDT"]
[Termination "GiorgianBarbosa won by resignation"]

1. c4 {[%clk 0:03:00.9]} 1... e6 {[%clk 0:02:58.8]} 2. g3 {[%clk 0:03:01.8]}
2... d5 {[%clk 0:02:58.2]} 3. Bg2 {[%clk 0:03:02.7]} 3... Nf6 {[%clk 0:02:58.4]}
4. Nf3 {[%clk 0:03:03.6]} 4... Be7 {[%clk 0:02:58]} 5. O-O {[%clk 0:03:04.5]}
5... O-O {[%clk 0:02:57.8]} 6. b3 {[%clk 0:03:04.3]} 6... c5 {[%clk 0:02:54.8]}
7. cxd5 {[%clk 0:03:03.3]} 7... exd5 {[%clk 0:02:55.3]} 8. d4 {[%clk 0:03:03.5]}
8... b6 {[%clk 0:02:50.1]} 9. Nc3 {[%clk 0:02:59.7]} 9... Bb7 {[%clk 0:02:48.9]}
10. Ba3 {[%clk 0:02:53.5]} 10... Nbd7 {[%clk 0:02:47.2]} 11. dxc5 {[%clk
0:02:52.3]} 11... bxc5 {[%clk 0:02:48.1]} 12. Na4 {[%clk 0:02:50.7]} 12... Rc8
{[%clk 0:02:44.9]} 13. Rc1 {[%clk 0:02:50]} 13... Ne4 {[%clk 0:02:17.7]} 14. Nd2
{[%clk 0:02:47]} 14... Nxd2 {[%clk 0:02:15.6]} 15. Qxd2 {[%clk 0:02:47.9]} 15...
Re8 {[%clk 0:01:25.2]} 16. Rfd1 {[%clk 0:02:42.7]} 16... Bg5 {[%clk 0:01:20]}
17. e3 {[%clk 0:02:26.5]} 17... Be7 {[%clk 0:01:04.7]} 18. Bxd5 {[%clk
0:02:22.9]} 18... Bxd5 {[%clk 0:01:05.6]} 19. Qxd5 {[%clk 0:02:22.6]} 19... Nb6
{[%clk 0:01:03.5]} 20. Qxd8 {[%clk 0:02:16.7]} 20... Rexd8 {[%clk 0:01:04.4]}
21. Rxd8+ {[%clk 0:02:16]} 21... Rxd8 {[%clk 0:01:03.7]} 22. Bxc5 {[%clk
0:01:53]} 22... Bxc5 {[%clk 0:01:00.6]} 23. Rxc5 {[%clk 0:01:50]} 23... Nxa4
{[%clk 0:00:57.8]} 24. bxa4 {[%clk 0:01:49.7]} 24... g6 {[%clk 0:00:58.7]} 25.
Rc7 {[%clk 0:01:45.9]} 25... Rd1+ {[%clk 0:00:56.4]} 26. Kg2 {[%clk 0:01:45.2]}
26... a5 {[%clk 0:00:57.3]} 27. Rc5 {[%clk 0:01:43.7]} 27... Rd2 {[%clk
0:00:58]} 28. Rxa5 {[%clk 0:01:43.7]} 28... Rxa2 {[%clk 0:00:58.5]} 29. Ra7
{[%clk 0:01:42.3]} 29... Kg7 {[%clk 0:00:59.3]} 30. g4 {[%clk 0:01:41.4]} 30...
Kf6 {[%clk 0:00:57.4]} 31. h4 {[%clk 0:01:38.4]} 31... h5 {[%clk 0:00:56.8]} 32.
g5+ {[%clk 0:01:38.1]} 32... Ke6 {[%clk 0:00:56.9]} 33. a5 {[%clk 0:01:35.8]}
33... Ra4 {[%clk 0:00:52.8]} 34. Kg3 {[%clk 0:01:34.5]} 34... Rg4+ {[%clk
0:00:52.6]} 35. Kh3 {[%clk 0:01:33.8]} 35... Ra4 {[%clk 0:00:52.6]} 36. a6
{[%clk 0:01:31.8]} 36... Ra2 {[%clk 0:00:51.4]} 37. Kg3 {[%clk 0:01:30.4]} 37...
Ra4 {[%clk 0:00:51.4]} 38. Ra8 {[%clk 0:01:30.7]} 38... Rg4+ {[%clk 0:00:48.9]}
39. Kh3 {[%clk 0:01:31.2]} 39... Ra4 {[%clk 0:00:43.6]} 40. a7 {[%clk
0:01:29.8]} 40... Ke7 {[%clk 0:00:44.1]} 41. Kg3 {[%clk 0:01:20.2]} 41... Rg4+
{[%clk 0:00:43.7]} 42. Kf3 {[%clk 0:01:19.3]} 42... Ra4 {[%clk 0:00:44.6]} 43.
Ke2 {[%clk 0:01:18.7]} 43... Ra3 {[%clk 0:00:44.4]} 44. Kd2 {[%clk 0:01:17.5]}
44... Ra2+ {[%clk 0:00:43.1]} 45. Kc3 {[%clk 0:01:17]} 45... Ra6 {[%clk
0:00:44]} 46. f4 {[%clk 0:01:15.5]} 46... Ra3+ {[%clk 0:00:43.9]} 47. Kb4 {[%clk
0:01:14.3]} 47... Ra1 {[%clk 0:00:44.5]} 48. e4 {[%clk 0:01:13.9]} 48... Rb1+
{[%clk 0:00:43.4]} 49. Kc3 {[%clk 0:01:13.9]} 49... Ra1 {[%clk 0:00:44.3]} 50.
f5 {[%clk 0:01:11]} 50... Ra3+ {[%clk 0:00:43.8]} 51. Kb4 {[%clk 0:01:09.8]}
51... Ra1 {[%clk 0:00:44]} 52. f6+ {[%clk 0:01:08.3]} 52... Kd7 {[%clk 0:00:39]}
53. Rf8 {[%clk 0:01:07.2]} 1-0

[Event "Early-Titled-Tuesday-Blitz-October-24-2023"]
[Site "Chess.com"]
[Date "2023.10.24"]
[Round "6"]
[White "chess123456s"]
[Black "dawid498"]
[Result "1-0"]
[WhiteElo "2545"]
[BlackElo "2675"]
[TimeControl "180+1"]
[EndTime "9:04:20 PDT"]
[Termination "chess123456s won on time"]

1. e4 {[%clk 0:03:00.9]} 1... g6 {[%clk 0:03:00.4]} 2. d4 {[%clk 0:03:00.7]}
2... Bg7 {[%clk 0:03:01.1]} 3. Nc3 {[%clk 0:03:01.2]} 3... c6 {[%clk 0:03:01.8]}
4. f4 {[%clk 0:03:01.6]} 4... d5 {[%clk 0:03:02]} 5. e5 {[%clk 0:03:02.2]} 5...
h5 {[%clk 0:03:02.5]} 6. Nf3 {[%clk 0:03:02.5]} 6... Bg4 {[%clk 0:03:02.9]} 7.
h3 {[%clk 0:03:01.7]} 7... Bxf3 {[%clk 0:03:02.8]} 8. Qxf3 {[%clk 0:03:02.6]}
8... h4 {[%clk 0:03:03.7]} 9. Bd3 {[%clk 0:03:02.8]} 9... e6 {[%clk 0:03:03.4]}
10. O-O {[%clk 0:03:03.1]} 10... Ne7 {[%clk 0:03:03]} 11. Ne2 {[%clk 0:03:03.2]}
11... Nd7 {[%clk 0:03:03]} 12. b3 {[%clk 0:03:03.7]} 12... Nf5 {[%clk
0:03:01.1]} 13. c4 {[%clk 0:03:02.2]} 13... Bf8 {[%clk 0:02:53.1]} 14. Bb2
{[%clk 0:02:59.3]} 14... Be7 {[%clk 0:02:49.6]} 15. Rac1 {[%clk 0:02:56.4]}
15... Qa5 {[%clk 0:02:47.5]} 16. Bc3 {[%clk 0:02:40.6]} 16... Bb4 {[%clk
0:02:35.6]} 17. Bxb4 {[%clk 0:02:36.7]} 17... Qxb4 {[%clk 0:02:36.5]} 18. cxd5
{[%clk 0:02:35]} 18... Nxd4 {[%clk 0:02:34.2]} 19. Nxd4 {[%clk 0:02:19]} 19...
Qxd4+ {[%clk 0:02:35.1]} 20. Kh1 {[%clk 0:02:19.2]} 20... exd5 {[%clk
0:01:59.3]} 21. e6 {[%clk 0:02:14.2]} 21... fxe6 {[%clk 0:02:00.2]} 22. Bxg6+
{[%clk 0:02:13.6]} 22... Kd8 {[%clk 0:02:00.8]} 23. f5 {[%clk 0:02:05.3]} 23...
Ne5 {[%clk 0:01:25.9]} 24. Qe2 {[%clk 0:02:03.5]} 24... Kc7 {[%clk 0:01:26.2]}
25. Rcd1 {[%clk 0:01:57]} 25... Qe4 {[%clk 0:01:26.2]} 26. Qxe4 {[%clk 0:01:43]}
26... dxe4 {[%clk 0:01:27.1]} 27. Rde1 {[%clk 0:01:43.6]} 27... exf5 {[%clk
0:01:05.7]} 28. Bxf5 {[%clk 0:01:43.3]} 28... Rae8 {[%clk 0:00:16.6]} 29. Rxe4
{[%clk 0:01:40.9]} 29... Nd7 {[%clk 0:00:06.5]} 30. Rxe8 {[%clk 0:01:31.7]}
30... Rxe8 {[%clk 0:00:07.4]} 31. Bxd7 {[%clk 0:01:31.9]} 31... Kxd7 {[%clk
0:00:08.3]} 32. Rf4 {[%clk 0:01:32]} 32... Rh8 {[%clk 0:00:05.2]} 33. Rf7+
{[%clk 0:01:30.8]} 33... Kc8 {[%clk 0:00:03.9]} 34. g4 {[%clk 0:01:30.9]} 34...
hxg3 {[%clk 0:00:03.6]} 35. Kg2 {[%clk 0:01:31.4]} 35... Rg8 {[%clk 0:00:01.5]}
36. h4 {[%clk 0:01:31.6]} 36... a5 {[%clk 0:00:01.2]} 37. h5 {[%clk 0:01:31.6]}
37... a4 {[%clk 0:00:01.6]} 38. h6 {[%clk 0:01:30.8]} 38... axb3 {[%clk
0:00:01.4]} 39. axb3 {[%clk 0:01:31.7]} 39... Rh8 {[%clk 0:00:01.8]} 40. h7
{[%clk 0:01:31.6]} 40... Kb8 {[%clk 0:00:02.4]} 41. Kxg3 {[%clk 0:01:32]} 41...
Ka7 {[%clk 0:00:03]} 42. Kg4 {[%clk 0:01:31.1]} 42... Ka6 {[%clk 0:00:03.1]} 43.
Kg5 {[%clk 0:01:28.4]} 43... c5 {[%clk 0:00:03.7]} 44. Kg6 {[%clk 0:01:27.9]}
44... b5 {[%clk 0:00:04.1]} 45. Rf4 {[%clk 0:01:18.6]} 45... b4 {[%clk 0:00:01]}
46. Kg7 {[%clk 0:01:18]} 1-0